fUSD/lending_fUSD_20240618
["ID","MTS","AMOUNT","RATE_DAILY","PERIOD"]
[329806725,1718682690242,-500.0,0.00023013,3]
[329806726,1718682690251,-500.0,0.00023013,3]
[329806727,1718682690261,-500.0,0.00023013,3]
[329806728,1718682690270,-500.0,0.00023013,3]
[329806729,1718682690280,-500.0,0.00023013,3]
[329806730,1718682690289,-500.0,0.00023013,3]
[329806731,1718682690302,-500.0,0.00023013,3]
[329806732,1718682690312,-500.0,0.00023013,3]
[329806733,1718682690321,-500.0,0.00023013,3]
[329806734,1718682690332,-655.54,0.00023013,3]
[329806735,1718682690343,-500.0,0.00023013,3]
[329806736,1718682690352,-500.0,0.00023013,3]
[329806737,1718682690362,-527.73484007,0.00023013,3]
[329806738,1718682690372,-500.0,0.00023013,3]
[329806739,1718682690382,-500.0,0.00023013,3]
[329806740,1718682690392,-500.0,0.00023013,3]
[329806741,1718682690402,-500.0,0.00023013,3]
[329806742,1718682690412,-500.0,0.00023013,3]
[329806743,1718682690421,-500.0,0.00023013,3]
[329806744,1718682690430,-500.0,0.00023013,3]
[329806745,1718682690439,-500.0,0.00023013,3]
[329806746,1718682690450,-500.0,0.00023013,3]
[329806747,1718682690459,-500.0,0.00023013,3]
[329806748,1718682690468,-572.25,0.00023013,3]
[329806749,1718682690478,-500.0,0.00023013,3]
[329806750,1718682690489,-500.0,0.00023013,3]
[329806751,1718682690498,-500.0,0.00023013,3]
[329806752,1718682690507,-500.0,0.00023013,3]
[329806753,1718682690516,-531.18,0.00023013,3]
[329806754,1718682690525,-500.0,0.00023013,3]
[329806755,1718682690534,-500.0,0.00023013,3]
[329806756,1718682690543,-508.67286628,0.00023013,3]
[329806757,1718682690706,-500.0,0.00023013,3]
[329806758,1718682690718,-500.0,0.00023013,3]
[329806759,1718682690728,-500.0,0.00023013,3]
[329806760,1718682690740,-500.0,0.00023013,3]
[329806761,1718682690750,-1147.52,0.00023013,3]
[329806762,1718682690759,-500.0,0.00023013,3]
[329806763,1718682690769,-500.0,0.00023013,3]
[329806764,1718682690780,-668.76,0.00023013,3]
[329806765,1718682690790,-500.0,0.00023013,3]
[329806766,1718682690800,-500.0,0.00023013,3]
[329806767,1718682690809,-500.0,0.00023013,3]
[329806768,1718682690819,-500.0,0.00023013,3]
[329806769,1718682690828,-588.09,0.00023013,3]
[329806770,1718682690842,-500.0,0.00023013,3]
[329806771,1718682690852,-1199.69,0.00023013,3]
[329806772,1718682690862,-677.6,0.00023013,3]
[329806773,1718682690872,-500.0,0.00023013,3]
[329806774,1718682690882,-500.0,0.00023013,3]
[329806775,1718682690892,-500.0,0.00023013,3]
[329806776,1718682690902,-982.81,0.00023013,3]
[329806777,1718682690913,-500.0,0.00023013,3]
[329806778,1718682690922,-500.0,0.00023013,3]
[329806779,1718682690932,-500.0,0.00023013,3]
[329806780,1718682690942,-547.46248894,0.00023013,3]
[329806781,1718682690952,-500.90323935,0.00023013,3]
[329806782,1718682690962,-500.0,0.00023013,3]
[329806783,1718682690971,-884.79,0.00023013,3]
[329806784,1718682690982,-266.9691749,0.00023013,3]
[329806785,1718682690992,-500.0,0.00023013,3]
[329806786,1718682691002,-561.74693976,0.00023013,3]
[329806787,1718682691012,-533.59,0.00023013,3]
[329806788,1718682691022,-500.0,0.00023013,3]
[329806789,1718682691032,-669.22,0.00023013,3]
[329806790,1718682691042,-500.0,0.00023013,3]
[329806791,1718682691051,-776.29,0.00023013,3]
[329806792,1718682691061,-966.33,0.00023013,3]
[329806793,1718682691071,-937.78,0.00023013,3]
[329806794,1718682691081,-500.0,0.00023013,3]
[329806795,1718682691091,-500.0,0.00023013,3]
[329806796,1718682691101,-571.55,0.00023013,3]
[329806797,1718682691112,-500.0,0.00023013,3]
[329806798,1718682691122,-500.0,0.00023013,3]
[329806799,1718682691132,-689.23,0.00023013,3]
[329806800,1718682691143,-568.14047072,0.00023013,3]
[329806801,1718682691153,-500.0,0.00023013,3]
[329806802,1718682691163,-1434.89,0.00023013,3]
[329806803,1718682691173,-1127.45,0.00023013,3]
[329806804,1718682691183,-500.0,0.00023013,3]
[329806805,1718682691193,-500.0,0.00023013,3]
[329806806,1718682691203,-546.67673949,0.00023013,3]
[329806807,1718682691213,-500.0,0.00023013,3]
[329806808,1718682691222,-589.64,0.00023013,3]
[329806809,1718682691235,-500.0,0.00023013,3]
[329806810,1718682691244,-763.04,0.00023013,3]
[329806811,1718682691254,-541.35489221,0.00023013,3]
[329806812,1718682691264,-619.79,0.00023013,3]
[329806813,1718682691275,-390.80910515,0.00023013,3]
[329806814,1718682691284,-500.0,0.00023013,3]
[329806815,1718682691295,-1072.62,0.00023013,3]
[329806816,1718682691305,-500.0,0.00023013,3]
[329806817,1718682691318,-871.87,0.00023013,3]
[329806818,1718682691328,-500.0,0.00023013,3]
[329806819,1718682691339,-1043.31,0.00023013,3]
[329806820,1718682691349,-500.0,0.00023013,3]
[329806821,1718682691359,-1155.17,0.00023013,3]
[329806822,1718682691369,-723.23,0.00023013,3]
[329806823,1718682691380,-641.15,0.00023013,3]
[329806824,1718682691393,-500.0,0.00023013,3]
[329806825,1718682691403,-1819.47,0.00023013,3]
[329806826,1718682691413,-1312.66,0.00023013,3]
[329806827,1718682691422,-500.0,0.00023013,3]
[329806828,1718682691432,-500.0,0.00023013,3]
[329806829,1718682691442,-976.95,0.00023013,3]
[329806830,1718682691451,-500.0,0.00023013,3]
[329806831,1718682691461,-1147.12,0.00023013,3]
[329806832,1718682691471,-500.0,0.00023013,3]
[329806833,1718682691484,-500.0,0.00023013,3]
[329806834,1718682691494,-580.69,0.00023013,3]
[329806835,1718682691503,-500.0,0.00023013,3]
[329806836,1718682691513,-745.63,0.00023013,3]
[329806837,1718682691523,-500.0,0.00023013,3]
[329806838,1718682691533,-500.0,0.00023013,3]
[329806839,1718682691543,-956.1,0.00023013,3]
[329806840,1718682691552,-1028.47,0.00023013,3]
[329806841,1718682691564,-535.51857559,0.00023013,3]
[329806842,1718682691574,-897.1,0.00023013,3]
[329806843,1718682691584,-806.72,0.00023013,3]
[329806844,1718682691595,-500.0,0.00023013,3]
[329806845,1718682691605,-777.47,0.00023013,3]
[329806846,1718682691614,-500.0,0.00023013,3]
[329806847,1718682691624,-500.0,0.00023013,3]
[329806848,1718682691634,-500.79,0.00023013,3]
[329806849,1718682691643,-857.95,0.00023013,3]
[329806850,1718682691653,-500.0,0.00023013,3]
[329806851,1718682691662,-1203.88,0.00023013,3]
[329806852,1718682691673,-500.0,0.00023013,3]
[329806853,1718682691684,-551.88,0.00023013,3]
[329806854,1718682691695,-500.0,0.00023013,3]
[329806855,1718682691705,-500.0,0.00023013,3]
[329806856,1718682691716,-500.0,0.00023013,3]
[329806857,1718682691727,-500.0,0.00023013,3]
[329806858,1718682691739,-1165.37,0.00023013,3]
[329806859,1718682691749,-500.0,0.00023013,3]
[329806860,1718682691759,-1092.79,0.00023013,3]
[329806861,1718682691769,-500.0,0.00023013,3]
[329806862,1718682691779,-500.0,0.00023013,3]
[329806863,1718682691788,-1160.39,0.00023013,3]
[329806864,1718682691811,-500.0,0.00023013,3]
[329806865,1718682691827,-500.0,0.00023013,3]
[329806866,1718682691847,-500.0,0.00023013,3]
[329806867,1718682691866,-1445.07,0.00023013,3]
[329806868,1718682691884,-1096.45,0.00023013,3]
[329806869,1718682691906,-500.0,0.00023013,3]
[329806870,1718682691921,-601.03,0.00023013,3]
[329806871,1718682691936,-918.39,0.00023013,3]
[329806872,1718682691954,-500.0,0.00023013,3]
[329806873,1718682691976,-500.0,0.00023013,3]
[329806874,1718682691995,-500.0,0.00023013,3]
[329806875,1718682692012,-741.37,0.00023013,3]
[329806876,1718682692028,-500.0,0.00023013,3]
[329806877,1718682692047,-500.0,0.00023013,3]
[329806878,1718682692061,-997.2,0.00023013,3]
[329806879,1718682692078,-500.0,0.00023013,3]
[329806880,1718682692095,-512.02237991,0.00023013,3]
[329806881,1718682692117,-604.65,0.00023013,3]
[329806882,1718682692142,-672.92,0.00023013,3]
[329806883,1718682692159,-500.0,0.00023013,3]
[329806884,1718682692175,-517.80617979,0.00023013,3]
[329806885,1718682692193,-840.58,0.00023013,3]
[329806886,1718682692211,-500.0,0.00023013,3]
[329806887,1718682692227,-500.0,0.00023013,3]
[329806888,1718682692244,-951.65,0.00023013,3]
[329806889,1718682692261,-536.23452955,0.00023013,3]
[329806890,1718682692276,-500.0,0.00023013,3]
[329806891,1718682692293,-500.0,0.00023013,3]
[329806892,1718682692315,-1128.31,0.00023013,3]
[329806893,1718682692331,-500.0,0.00023013,3]
[329806894,1718682692349,-500.0,0.00023013,3]
[329806895,1718682692364,-500.0,0.00023013,3]
[329806896,1718682692380,-686.53,0.00023013,3]
[329806897,1718682692395,-500.0,0.00023013,3]
[329806898,1718682692410,-602.48934788,0.00023013,3]
[329806899,1718682692425,-500.0,0.00023013,3]
[329806900,1718682692440,-500.0,0.00023013,3]
[329806901,1718682692454,-555.4,0.00023013,3]
[329806902,1718682692468,-752.13,0.00023013,3]
[329806903,1718682692484,-500.0,0.00023013,3]
[329806904,1718682692499,-512.57842938,0.00023013,3]
[329806905,1718682692513,-500.0,0.00023013,3]
[329806906,1718682692527,-500.0,0.00023013,3]
[329806907,1718682692542,-500.0,0.00023013,3]
[329806908,1718682692557,-806.82,0.00023013,3]
[329806909,1718682692571,-500.0,0.00023013,3]
[329806910,1718682692586,-500.0,0.00023013,3]
[329806911,1718682692600,-500.0,0.00023013,3]
[329806912,1718682692615,-500.0,0.00023013,3]
[329806913,1718682692631,-691.76,0.00023013,3]
[329806914,1718682692646,-500.0,0.00023013,3]
[329806915,1718682692660,-1062.73,0.00023013,3]
[329806916,1718682692675,-618.45,0.00023013,3]
[329806917,1718682692691,-500.0,0.00023013,3]
[329806918,1718682692705,-500.0,0.00023013,3]
[329806919,1718682692720,-500.0,0.00023013,3]
[329806920,1718682692736,-500.0,0.00023013,3]
[329806921,1718682692750,-500.0,0.00023013,3]
[329806922,1718682692764,-500.0,0.00023013,3]
[329806923,1718682692780,-805.26,0.00023013,3]
[329806924,1718682692795,-927.54,0.00023013,3]
[329806925,1718682692810,-1584.26,0.00023013,3]
[329806926,1718682692825,-719.72,0.00023013,3]
[329806927,1718682692840,-500.0,0.00023013,3]
[329806928,1718682692856,-500.0,0.00023013,3]
[329806929,1718682692871,-615.73,0.00023013,3]
[329806930,1718682692881,-500.0,0.00023013,3]
[329806931,1718682692891,-500.0,0.00023013,3]
[329806932,1718682692901,-500.0,0.00023013,3]
[329806933,1718682692910,-1051.47,0.00023013,3]
[329806934,1718682692919,-531.72034491,0.00023013,3]
[329806935,1718682692929,-500.0,0.00023013,3]
[329806936,1718682692939,-500.0,0.00023013,3]
[329806937,1718682692948,-1207.85,0.00023013,3]
[329806938,1718682692958,-500.0,0.00023013,3]
[329806939,1718682692967,-523.91,0.00023013,3]
[329806940,1718682692976,-858.56,0.00023013,3]
[329806941,1718682692988,-530.46312434,0.00023013,3]
[329806942,1718682692997,-732.3,0.00023013,3]
[329806943,1718682693006,-500.0,0.00023013,3]
[329806944,1718682693015,-708.91,0.00023013,3]
[329806945,1718682693025,-1176.98,0.00023013,3]
[329806946,1718682693034,-500.0,0.00023013,3]
[329806947,1718682693043,-1365.46,0.00023013,3]
[329806948,1718682693053,-500.0,0.00023013,3]
[329806949,1718682693062,-500.0,0.00023013,3]
[329806950,1718682693072,-847.87,0.00023013,3]
[329806951,1718682693081,-1167.27,0.00023013,3]
[329806952,1718682693090,-233.77964249,0.00023013,3]
[329806953,1718682693100,-584.07,0.00023013,3]
[329806954,1718682693109,-500.0,0.00023013,3]
[329806955,1718682693118,-500.0,0.00023013,3]
[329806956,1718682693127,-500.0,0.00023013,3]
[329806957,1718682693137,-530.73,0.00023013,3]
[329806958,1718682693146,-1857.83,0.00023013,3]
[329806959,1718682693157,-500.0,0.00023013,3]
[329806960,1718682693166,-500.0,0.00023013,3]
[329806961,1718682693176,-500.0,0.00023013,3]
[329806962,1718682693185,-1197.75,0.00023013,3]
[329806963,1718682693195,-500.0,0.00023013,3]
[329806964,1718682693204,-747.26,0.00023013,3]
[329806965,1718682693214,-500.0,0.00023013,3]
[329806966,1718682693224,-500.0,0.00023013,3]
[329806967,1718682693236,-500.0,0.00023013,3]
[329806968,1718682693246,-500.0,0.00023013,3]
[329806969,1718682693255,-695.41,0.00023013,3]
[329806970,1718682693265,-1350.0,0.00023013,3]
[329806971,1718682693709,-1251.17,0.00023013,3]
[329806972,1718682693738,-500.0,0.00023013,3]
[329806973,1718682693758,-500.0,0.00023013,3]
[329806974,1718682693774,-500.0,0.00023013,3]
[329806975,1718682693784,-1229.05,0.00023013,3]
[329806976,1718682693793,-250.0,0.00023013,3]
[329806977,1718682693803,-711.01,0.00023013,3]
[329806978,1718682693813,-500.0,0.00023013,3]
[329806979,1718682693823,-585.71,0.00023013,3]
[329806980,1718682693832,-500.0,0.00023013,3]
[329806981,1718682693842,-1207.13,0.00023013,3]
[329806982,1718682693852,-164.8436514,0.00023013,3]
[329806983,1718682693863,-1485.96,0.00023013,3]
[329806984,1718682693872,-816.11,0.00023013,3]
[329806985,1718682693882,-500.0,0.00023013,3]
[329806986,1718682693892,-361.65,0.00023013,3]
[329806987,1718682693903,-998.58,0.00023013,3]
[329806988,1718682693913,-500.0,0.00023013,3]
[329806989,1718682693924,-500.0,0.00023013,3]
[329806990,1718682693934,-500.0,0.00023013,3]
[329806991,1718682693944,-866.27,0.00023013,3]
[329806992,1718682693954,-500.0,0.00023013,3]
[329806993,1718682693964,-583.88,0.00023013,3]
[329806994,1718682693974,-500.0,0.00023013,3]
[329806995,1718682693987,-500.0,0.00023013,3]
[329806996,1718682693998,-658.8,0.00023013,3]
[329806997,1718682694007,-500.0,0.00023013,3]
[329806998,1718682694017,-500.0,0.00023013,3]
[329806999,1718682694026,-884.98,0.00023013,3]
[329807000,1718682694035,-500.0,0.00023013,3]
[329807001,1718682694044,-500.0,0.00023013,3]
[329807002,1718682694054,-1865.89,0.00023013,3]
[329807003,1718682694064,-476.39594579,0.00023013,3]
[329807004,1718682694074,-1095.88,0.00023013,3]
[329807005,1718682694084,-500.0,0.00023013,3]
[329807006,1718682694093,-974.31,0.00023013,3]
[329807007,1718682694103,-500.0,0.00023013,3]
[329807008,1718682694112,-500.0,0.00023013,3]
[329807009,1718682694122,-500.0,0.00023013,3]
[329807010,1718682694131,-693.14,0.00023013,3]
[329807011,1718682694139,-152.4114079,0.00023013,3]
[329807012,1718682694149,-500.0,0.00023013,3]
[329807013,1718682694158,-500.0,0.00023013,3]
[329807014,1718682694168,-500.0,0.00023013,3]
[329807015,1718682694177,-638.02403329,0.00023013,3]
[329807016,1718682694187,-500.0,0.00023013,3]
[329807017,1718682694197,-788.79,0.00023013,3]
[329807018,1718682694207,-516.38,0.00023013,3]
[329807019,1718682694217,-500.0,0.00023013,3]
[329807020,1718682694227,-151.06092095,0.00023013,3]
[329807021,1718682694240,-1338.3,0.00023013,3]
[329807022,1718682694251,-915.98,0.00023013,3]
[329807023,1718682694260,-811.62,0.00023013,3]
[329807024,1718682694270,-977.1,0.00023013,3]
[329807025,1718682694279,-504.22282175,0.00023013,3]
[329807026,1718682694288,-909.19,0.00023013,3]
[329807027,1718682694299,-500.0,0.00023013,3]
[329807028,1718682694310,-500.0,0.00023013,3]
[329807029,1718682694320,-893.66,0.00023013,3]
[329807030,1718682694330,-512.93739089,0.00023013,3]
[329807031,1718682694340,-500.0,0.00023013,3]
[329807032,1718682694350,-500.0,0.00023013,3]
[329807033,1718682694359,-1494.28,0.00023013,3]
[329807034,1718682694369,-500.0,0.00023013,3]
[329807035,1718682694378,-500.0,0.00023013,3]
[329807036,1718682694390,-500.0,0.00023013,3]
[329807037,1718682694400,-577.49,0.00023013,3]
[329807038,1718682694411,-500.0,0.00023013,3]
[329807039,1718682694420,-1478.42,0.00023013,3]
[329807040,1718682694430,-500.0,0.00023013,3]
[329807041,1718682694440,-630.69,0.00023013,3]
[329807042,1718682694450,-1042.44,0.00023013,3]
[329807043,1718682694460,-500.0,0.00023013,3]
[329807044,1718682694469,-538.63,0.00023013,3]
[329807045,1718682694479,-798.79,0.00023013,3]
[329807046,1718682694491,-11323.23,0.00023013,3]
[329807047,1718682694501,-500.0,0.00023013,3]
[329807048,1718682694511,-500.0,0.00023013,3]
[329807049,1718682694521,-500.0,0.00023013,3]
[329807050,1718682694530,-541.1,0.00023013,3]
[329807051,1718682694541,-500.0,0.00023013,3]
[329807052,1718682694550,-500.0,0.00023013,3]
[329807053,1718682694567,-575.01146494,0.00023013,3]
[329807054,1718682694577,-1321.82,0.00023013,3]
[329807055,1718682694586,-19171.36,0.00023013,3]
[329807056,1718682694597,-500.0,0.00023013,3]
[329807057,1718682694607,-623.71,0.00023013,3]
[329807058,1718682694618,-500.0,0.00023013,3]
[329807059,1718682694628,-500.0,0.00023013,3]
[329807060,1718682694638,-6176.04,0.00023013,3]
[329807061,1718682694647,-343.96972344,0.00023013,3]
[329807062,1718682694658,-500.0,0.00023013,3]
[329807063,1718682694667,-500.0,0.00023013,3]
[329807064,1718682694677,-500.0,0.00023013,3]
[329807065,1718682694686,-500.0,0.00023013,3]
[329807066,1718682694696,-649.48,0.00023013,3]
[329807067,1718682694706,-472.16238091,0.00023013,3]
[329807068,1718682694716,-753.0,0.00023013,3]
[329807069,1718682694726,-4651.95,0.00023013,3]
[329807070,1718682694738,-500.0,0.00023013,3]
[329807071,1718682694748,-500.0,0.00023013,3]
[329807072,1718682694757,-500.0,0.00023013,3]
[329807073,1718682694768,-2380.03,0.00023013,3]
[329807074,1718682694777,-1080.8,0.00023013,3]
[329807075,1718682694787,-500.0,0.00023013,3]
[329807076,1718682694797,-1644.32,0.00023013,3]
[329807077,1718682694806,-247.17950032,0.00023013,3]
[329807078,1718682694816,-1613.96,0.00023013,3]
[329807079,1718682694827,-500.0,0.00023013,3]
[329807080,1718682694837,-1256.49,0.00023013,3]
[329807081,1718682694846,-500.0,0.00023013,3]
[329807082,1718682694856,-25687.78,0.00023013,3]
[329807083,1718682694865,-500.0,0.00023013,3]
[329807084,1718682694875,-38761.72,0.00023013,3]
[329807085,1718682694886,-500.0,0.00023013,3]
[329807086,1718682694897,-500.0,0.00023013,3]
[329807087,1718682694907,-1040.74,0.00023013,3]
[329807088,1718682694917,-500.0,0.00023013,3]
[329807089,1718682694926,-500.0,0.00023013,3]
[329807090,1718682694936,-500.05,0.00023013,3]
[329807091,1718682694946,-500.0,0.00023013,3]
[329807092,1718682694955,-613.05177215,0.00023013,3]
[329807093,1718682694965,-932.04,0.00023013,3]
[329807094,1718682694974,-2212.99,0.00023013,3]
[329807095,1718682694987,-500.0,0.00023013,3]
[329807096,1718682694996,-500.0,0.00023013,3]
[329807097,1718682695010,-812.87,0.00023013,3]
[329807098,1718682695019,-500.0,0.00023013,3]
[329807099,1718682695029,-2622.5,0.00023013,3]
[329807100,1718682695039,-697.31,0.00023013,3]
[329807101,1718682695050,-500.0,0.00023013,3]
[329807102,1718682695060,-879.83,0.00023013,3]
[329807103,1718682695070,-3759.26,0.00023013,3]
[329807104,1718682695080,-501.24,0.00023013,3]
[329807105,1718682695091,-500.0,0.00023013,3]
[329807106,1718682695100,-1019.56,0.00023013,3]
[329807107,1718682695111,-500.0,0.00023013,3]
[329807108,1718682695121,-1137.23,0.00023013,3]
[329807109,1718682695131,-959.63,0.00023013,3]
[329807110,1718682695141,-500.0,0.00023013,3]
[329807111,1718682695150,-1033.0,0.00023013,3]
[329807112,1718682695160,-3323.53,0.00023013,3]
[329807113,1718682695170,-2084.63,0.00023013,3]
[329807114,1718682695181,-500.0,0.00023013,3]
[329807115,1718682695190,-597.03,0.00023013,3]
[329807116,1718682695200,-500.0,0.00023013,3]
[329807117,1718682695210,-1240.2,0.00023013,3]
[329807118,1718682695219,-500.0,0.00023013,3]
[329807119,1718682695229,-500.0,0.00023013,3]
[329807120,1718682695244,-955.07,0.00023013,3]
[329807121,1718682695254,-500.0,0.00023013,3]
[329807122,1718682695264,-1251.63,0.00023013,3]
[329807123,1718682695273,-25567.35,0.00023013,3]
[329807124,1718682695283,-4307.56,0.00023013,3]
[329807125,1718682695293,-1281.09,0.00023013,3]
[329807126,1718682695304,-5933.06,0.00023013,3]
[329807127,1718682695318,-25423.61,0.00023013,3]
[329807128,1718682695328,-191.27783816,0.00023013,3]
[329807129,1718682695338,-1098.33,0.00023013,3]
[329807130,1718682695350,-5504.91,0.00023013,3]
[329807131,1718682695360,-500.0,0.00023013,3]
[329807132,1718682695371,-500.0,0.00023013,3]
[329807133,1718682695380,-981.69,0.00023013,3]
[329807134,1718682695393,-500.0,0.00023013,3]
[329807135,1718682695404,-1385.88,0.00023013,3]
[329807136,1718682695414,-2883.4,0.00023013,3]
[329807137,1718682695424,-728.68,0.00023013,3]
[329807138,1718682695434,-500.0,0.00023013,3]
[329807139,1718682695444,-500.0,0.00023013,3]
[329807140,1718682695454,-500.0,0.00023013,3]
[329807141,1718682695464,-1718.08,0.00023013,3]
[329807142,1718682695473,-500.0,0.00023013,3]
[329807143,1718682695487,-500.0,0.00023013,3]
[329807144,1718682695497,-971.24,0.00023013,3]
[329807145,1718682695507,-735.1,0.00023013,3]
[329807146,1718682695516,-915.66,0.00023013,3]
[329807147,1718682695526,-5219.52,0.00023013,3]
[329807148,1718682695536,-680.96,0.00023013,3]
[329807149,1718682695546,-500.0,0.00023013,3]
[329807150,1718682695554,-794.95,0.00023013,3]
[329807151,1718682695564,-3872.03,0.00023013,3]
[329807152,1718682695574,-9710.9,0.00023013,3]
[329807153,1718682695584,-500.0,0.00023013,3]
[329807154,1718682695594,-1772.4,0.00023013,3]
[329807155,1718682695604,-1627.6,0.00023013,3]
[329807156,1718682695614,-500.0,0.00023013,3]
[329807157,1718682695624,-1773.58,0.00023013,3]
[329807158,1718682695634,-500.0,0.00023013,3]
[329807159,1718682695644,-500.0,0.00023013,3]
[329807160,1718682695653,-500.0,0.00023013,3]
[329807161,1718682695663,-3961.24,0.00023013,3]
[329807162,1718682695673,-500.0,0.00023013,3]
[329807163,1718682695683,-716.07,0.00023013,3]
[329807164,1718682695693,-2392.42,0.00023013,3]
[329807165,1718682695703,-597.79,0.00023013,3]
[329807166,1718682695713,-3060.74,0.00023013,3]
[329807167,1718682695722,-500.0,0.00023013,3]
[329807168,1718682695735,-500.0,0.00023013,3]
[329807169,1718682695746,-4956.6,0.00023013,3]
[329807170,1718682695756,-1361.07,0.00023013,3]
[329807171,1718682695766,-6046.79,0.00023013,3]
[329807172,1718682695776,-288.82708222,0.00023013,3]
[329807173,1718682695786,-702.61,0.00023013,3]
[329807174,1718682695796,-6069.34,0.00023013,3]
[329807175,1718682695806,-994.27,0.00023013,3]
[329807176,1718682695815,-637.43,0.00023013,3]
[329807177,1718682695825,-500.0,0.00023013,3]
[329807178,1718682695835,-500.0,0.00023013,3]
[329807179,1718682695845,-626.75,0.00023013,3]
[329807180,1718682695855,-23024.27,0.00023013,3]
[329807181,1718682695865,-500.0,0.00023013,3]
[329807182,1718682695875,-500.0,0.00023013,3]
[329807183,1718682695886,-615.95,0.00023013,3]
[329807184,1718682695896,-1597.76,0.00023013,3]
[329807185,1718682695906,-1078.25,0.00023013,3]
[329807186,1718682695917,-500.0,0.00023013,3]
[329807187,1718682695927,-500.0,0.00023013,3]
[329807188,1718682695937,-2492.55,0.00023013,3]
[329807189,1718682695947,-1122.58,0.00023013,3]
[329807190,1718682695956,-500.0,0.00023013,3]
[329807191,1718682695966,-1781.54,0.00023013,3]
[329807192,1718682695976,-1420.79,0.00023013,3]
[329807193,1718682695988,-2490.2,0.00023013,3]
[329807194,1718682695998,-500.0,0.00023013,3]
[329807195,1718682696007,-2295.93,0.00023013,3]
[329807196,1718682696016,-818.79,0.00023013,3]
[329807197,1718682696025,-500.0,0.00023013,3]
[329807198,1718682696035,-500.0,0.00023013,3]
[329807199,1718682696045,-1828.62,0.00023013,3]
[329807200,1718682696055,-1123.59,0.00023013,3]
[329807201,1718682696064,-500.0,0.00023013,3]
[329807202,1718682696074,-1191.73,0.00023013,3]
[329807203,1718682696084,-548.40004769,0.00023013,3]
[329807204,1718682696093,-1757.94,0.00023013,3]
[329807205,1718682696103,-500.0,0.00023013,3]
[329807206,1718682696112,-1392.38,0.00023013,3]
[329807207,1718682696122,-500.0,0.00023013,3]
[329807208,1718682696131,-1034.27,0.00023013,3]
[329807209,1718682696140,-7077.28,0.00023013,3]
[329807210,1718682696149,-1192.21,0.00023013,3]
[329807211,1718682696159,-500.0,0.00023013,3]
[329807212,1718682696169,-1713.03,0.00023013,3]
[329807213,1718682696178,-76.25293653,0.00023013,3]
[329807214,1718682697220,-500.0,0.00021917,2]
[329807215,1718682697230,-151.0,0.00021917,2]
[329807216,1718682697242,-500.0,0.00021917,2]
[329807217,1718682697252,-151.0,0.00021917,2]
[329807218,1718682697261,-1.88284907,0.00022191,3]
[329807219,1718682697273,-634.34715093,0.00022191,3]
[329807220,1718682697282,-16.04619714,0.00022191,3]
[329807221,1718682697332,-151.0,0.00021917,2]
[329807222,1718682697341,-273.55413051,0.00022191,3]
[329807223,1718682698386,-355.99679615,0.00021917,2]
[329807224,1718682698398,-439.00320385,0.00021917,2]